bitfinex-derivatives/quotes_SOLF0:USTF0_20250301
["timestamp","ask_amount","ask_price","bid_price","bid_amount"]
[1740794030284,0.04565768,149.5,149.47,0.04884593]
[1740794031989,0.04565768,149.5,149.48,5.3539]
[1740794032291,0.04565768,149.5,149.47,0.04884593]
[1740794032492,0.04565768,149.5,149.48,5.3535]
[1740794032790,5.768e-05,149.5,149.47,0.04884593]
[1740794032985,5.768e-05,149.5,149.49,5.3535]
[1740794035692,5.768e-05,149.5,149.48,5.3538]
[1740794035991,5.768e-05,149.5,149.47,0.04884593]
[1740794036791,5.768e-05,149.5,149.49,5.3535]
[1740794038991,5.768e-05,149.5,149.49,8.6935]
[1740794039488,5.768e-05,149.5,149.49,5.3535]
[1740794040188,5.768e-05,149.5,149.47,0.04884593]
[1740794040484,5.768e-05,149.5,149.47,14.04884593]
[1740794040683,5.768e-05,149.5,149.47,0.04884593]
[1740794041397,5.768e-05,149.5,149.47,5.40304593]
[1740794042497,5.768e-05,149.5,149.47,0.04884593]
[1740794043192,5.768e-05,149.5,149.49,5.3535]
[1740794046892,5.768e-05,149.5,149.47,5.40304593]
[1740794047099,5.768e-05,149.5,149.47,0.04884593]
[1740794047298,5.768e-05,149.5,149.48,5.3536]
[1740794047687,5.768e-05,149.5,149.47,0.04884593]
[1740794047995,5.768e-05,149.5,149.47,5.40284593]
[1740794048198,5.768e-05,149.5,149.47,0.04884593]
[1740794049200,5.768e-05,149.5,149.48,5.3536]
[1740794049499,5.768e-05,149.5,149.47,0.04884593]
[1740794049897,5.768e-05,149.5,149.47,5.40304593]
[1740794050199,5.768e-05,149.5,149.37,73.97329334]
[1740794050500,5.3548,149.46,149.41,5.3562]
[1740794050893,217.7027,149.51,149.4,13.86]
[1740794051496,0.04516538,149.47,149.44,0.04797654]
[1740794051697,5.3546,149.46,149.44,0.04797654]
[1740794051897,0.04516538,149.47,149.44,0.04797654]
[1740794052091,0.04516538,149.47,149.38,13.84]
[1740794052290,217.7027,149.51,149.4,5.3566]
[1740794052696,217.7027,149.51,149.37,87.79329334]
[1740794052892,217.7027,149.51,149.37,13.82]
[1740794053098,20.17,149.49,149.34,27.56597211]
[1740794053295,0.04991822,149.45,149.34,27.56597211]
[1740794053602,5.3576,149.38,149.34,27.56597211]
[1740794054501,0.04797443,149.37,149.35,0.03279528]
[1740794055096,0.04797443,149.37,149.34,27.56597211]
[1740794055295,5.354,149.48,149.35,14.02]
[1740794055496,3.6581,149.49,149.42,5.3557]
[1740794055702,3.6581,149.49,149.41,14.04]
[1740794056093,190.0,149.48,149.26,27.56597211]
[1740794056301,0.04514059,149.4,149.37,0.04797443]
[1740794056504,5.3567,149.41,149.3,14.04]
[1740794056803,214.14,149.45,149.3,14.04]
[1740794057009,0.04546754,149.37,149.34,0.04797443]
[1740794057200,7.1358,149.4,149.26,27.56597211]
[1740794057401,0.04522386,149.37,149.34,0.0457631]
[1740794059304,5.40332386,149.37,149.34,0.0457631]
[1740794059508,0.04522386,149.37,149.34,0.0457631]
[1740794060700,0.04522386,149.37,149.36,5.3582]
[1740794061005,2.386e-05,149.37,149.36,5.3582]
[1740794061806,2.386e-05,149.37,149.34,0.0457631]
[1740794062005,2.386e-05,149.37,149.34,5.4043631]
[1740794062999,2.386e-05,149.37,149.34,0.0457631]
[1740794064610,2.386e-05,149.37,149.36,5.3582]
[1740794065205,2.386e-05,149.37,149.35,5.3584]
[1740794066414,53.01358676,149.76,149.44,16.0651]
[1740794066611,6.9380828,149.77,149.45,40.09540524]
[1740794066911,549.78687565,149.86,149.55,20.17]
[1740794067113,549.78687565,149.86,149.46,216.7853157]
[1740794067114,541.55557565,149.86,149.84,5.3407]
[1740794067411,444.52491555,149.86,149.85,17.46]
[1740794067611,373.80154853,149.86,149.85,32.40814061]
[1740794068210,373.80154853,149.86,149.85,60.12666496]
[1740794068711,373.80154853,149.86,149.85,63.46666496]
[1740794068911,373.80154853,149.86,149.85,60.12666496]
[1740794069509,0.0489024,149.86,149.85,121.79618396]
[1740794069911,0.0489024,149.86,149.85,129.52792625]
[1740794070417,0.0489024,149.86,149.85,121.79618396]
[1740794070812,0.0489024,149.86,149.85,162.27441588]
[1740794071212,0.0489024,149.86,149.85,169.96846925]
[1740794071414,0.0489024,149.86,149.85,181.85185184]
[1740794071622,3.6895,150.0,149.85,181.85185184]
[1740794071809,13.39,149.89,149.86,27.71852435]
[1740794072015,13.39,149.89,149.87,15.66699202]
[1740794072212,2.58312965,149.93,149.88,15.66699202]
[1740794072411,132.89788264,149.93,149.89,15.66699202]
[1740794072616,132.89788264,149.93,149.9,15.66699202]
[1740794072817,0.04370407,149.92,149.91,15.66699202]
[1740794073018,210.37674039,150.02,149.91,15.66699202]
[1740794073220,90.23475299,149.95,149.92,15.66699202]
[1740794073420,90.23475299,149.95,149.93,15.66699202]
[1740794073611,130.31475299,149.95,149.94,6.02576616]
[1740794073916,130.31475299,149.95,149.94,32.85728936]
[1740794074108,130.31475299,149.95,149.94,42.49851522]
[1740794074311,37.22712727,149.95,149.94,42.49851522]
[1740794075115,37.22712727,149.95,149.94,32.85728936]
[1740794075316,37.22712727,149.95,149.94,10.29848936]
[1740794075516,37.22712727,149.95,149.94,49.40860836]
[1740794075913,73.27165928,150.02,149.94,49.40860836]
[1740794076424,5.336,149.98,149.97,7.61915271]
[1740794076718,4.63702938,149.98,149.94,49.40860836]
[1740794076922,17.66,150.01,149.94,45.71370836]
[1740794077109,5.3368,149.96,149.95,0.04520383]
[1740794077311,5.3368,149.96,149.94,34.40961219]
[1740794077512,3.34,149.96,149.93,26.64265573]
[1740794077707,17.66,150.01,149.93,26.64265573]
[1740794078011,21.0,150.01,149.93,26.64265573]
[1740794078608,21.0,150.01,149.93,18.19275573]
[1740794078814,5.3374,149.94,149.93,11.53275573]
[1740794079116,17.6,149.94,149.92,0.04859719]
[1740794079313,20.94,149.94,149.92,0.04859719]
[1740794079515,5.3378,149.93,149.92,9.719e-05]
[1740794079716,20.94,149.94,149.91,44.70957914]
[1740794079917,213.64,149.93,149.79,3.6838]
[1740794080122,5.3392,149.9,149.79,10.3438]
[1740794080419,213.64,149.93,149.79,10.3438]
[1740794080920,0.04961603,149.87,149.85,0.04744055]
[1740794081117,213.64,149.93,149.85,0.04744055]
[1740794081316,0.04208917,149.87,149.85,0.04744055]
[1740794081512,5.3391,149.9,149.85,0.04744055]
[1740794081719,0.05014671,149.87,149.85,0.04744055]
[1740794081922,213.64,149.93,149.85,0.04744055]
[1740794082115,0.04239493,149.87,149.85,0.04744055]
[1740794082317,213.64,149.93,149.85,0.04744055]
[1740794082520,0.04354259,149.87,149.85,0.04744055]
[1740794082821,5.3408,149.85,149.76,3.7281]
[1740794083017,5.3408,149.85,149.76,10.3881]
[1740794083519,5.3411,149.84,149.76,10.3881]
[1740794083717,213.64,149.83,149.79,0.04834832]
[1740794083919,0.04504245,149.81,149.79,0.04834832]
[1740794084115,0.04504245,149.81,149.79,6.70834832]
[1740794084319,0.04504245,149.81,149.79,0.04834832]
[1740794084718,5.3424,149.8,149.79,0.04834832]
[1740794085517,5.3424,149.8,149.79,4.832e-05]
[1740794086536,5.045733,149.8,149.79,4.832e-05]
[1740794086720,4.71332644,149.8,149.79,4.832e-05]
[1740794087123,8.05332644,149.8,149.79,4.832e-05]
[1740794088020,4.71332644,149.8,149.79,4.832e-05]
[1740794088727,17.30504245,149.81,149.67,4.248e-05]
[1740794088919,17.26,149.81,149.67,4.248e-05]
[1740794089121,17.26,149.81,149.67,6.66004248]
[1740794089629,5.346,149.7,149.68,5.41974949]
[1740794089830,213.68,149.72,149.68,12.07974949]
[1740794090020,0.04672991,149.7,149.68,12.1255953]
[1740794090222,0.04672991,149.7,149.69,5.41974949]
[1740794090727,0.04672991,149.7,149.69,12.07974949]
[1740794090930,5.39272991,149.7,149.69,12.07974949]
[1740794091921,5.39272991,149.7,149.69,5.41974949]
[1740794092322,5.3464,149.69,149.68,0.04584581]
[1740794095332,5.3464,149.69,149.68,5.3780872]
[1740794095732,5.3464,149.69,149.68,0.04584581]
[1740794096928,0.04672991,149.7,149.68,0.04584581]
[1740794097125,0.04672991,149.7,149.68,6.70584581]
[1740794097326,0.04672991,149.7,149.69,5.33224139]
[1740794097628,5.39272991,149.7,149.69,5.33224139]
[1740794097824,0.04672991,149.7,149.69,5.33224139]
[1740794098222,5.39272991,149.7,149.69,5.33224139]
[1740794098423,0.04672991,149.7,149.69,5.33224139]
[1740794098622,213.68,149.72,149.69,5.33224139]
[1740794099036,213.68,149.72,149.69,11.99224139]
[1740794099227,213.68,149.72,149.7,5.33224139]
[1740794099736,213.72521023,149.72,149.71,5.33224139]
[1740794100035,219.07051023,149.72,149.71,5.33224139]
[1740794100230,219.07051023,149.72,149.71,11.99224139]
[1740794100729,219.07051023,149.72,149.71,5.33224139]
[1740794102929,219.07051023,149.72,149.71,4.139e-05]
[1740794107731,213.72521023,149.72,149.71,14.84358826]
[1740794107930,202.43201023,149.72,149.71,14.84358826]
[1740794108136,213.8,149.8,149.71,14.84358826]
[1740794108336,213.8,149.8,149.72,31.30354687]
[1740794108638,213.8,149.8,149.73,14.92533098]
[1740794108840,213.8,149.8,149.74,14.92533098]
[1740794109042,213.8,149.8,149.75,14.92533098]
[1740794109235,0.04260814,149.78,149.76,14.97502143]
[1740794109434,5.38570814,149.78,149.77,5.74051191]
[1740794109627,0.04260814,149.78,149.76,2.36e-06]
[1740794110039,5.3435,149.77,149.76,2.36e-06]
[1740794110736,8.6835,149.77,149.76,2.36e-06]
[1740794110933,5.3435,149.77,149.76,2.36e-06]
[1740794114343,8.6835,149.77,149.76,2.36e-06]
[1740794115043,3.34,149.77,149.67,19.43905797]
[1740794115236,3.7569,149.76,149.68,8.85081158]
[1740794115445,7.313,149.76,149.64,15.95885797]
[1740794115742,5.3478,149.65,149.64,15.95885797]
[1740794115941,213.8,149.67,149.57,8.76650637]
[1740794116245,0.04704202,149.63,149.61,0.04755643]
[1740794116439,0.04704202,149.63,149.62,8.76650637]
[1740794116646,0.04704202,149.63,149.61,0.04755643]
[1740794116945,5.3489,149.62,149.61,0.04755643]
[1740794117540,213.8,149.67,149.61,0.04755643]
[1740794117736,213.8,149.67,149.61,8.82190897]
[1740794117943,213.8,149.67,149.61,0.04755643]
[1740794118143,213.8,149.67,149.62,8.77435254]
[1740794118444,213.8,149.67,149.63,8.77435254]
[1740794118648,213.8,149.67,149.64,8.77435254]
[1740794118946,0.04584074,149.66,149.64,24.73321051]
[1740794119146,0.04584074,149.66,149.65,8.77435254]
[1740794119447,0.04584074,149.66,149.65,24.73321051]
[1740794119645,0.04584074,149.66,149.65,31.39321051]
[1740794119846,5.39324074,149.66,149.65,24.73321051]
[1740794120043,213.8,149.67,149.65,24.73321051]
[1740794120244,213.8,149.67,149.66,8.77435254]
[1740794120645,213.8,149.67,149.66,24.73321051]
[1740794120849,219.1471,149.67,149.66,31.39321051]
[1740794121046,219.1471,149.67,149.66,24.75238045]
[1740794121841,219.1471,149.67,149.66,22.21561008]
[1740794122041,219.1471,149.67,149.66,5.3822876]
[1740794122247,5.3478,149.65,149.64,0.04373042]
[1740794122444,5.3478,149.65,149.64,8.86198409]
[1740794123047,5.3478,149.65,149.64,0.04373042]
[1740794123748,5.3478,149.65,149.64,3.042e-05]
[1740794130752,195.3478,149.65,149.64,3.042e-05]
[1740794132654,202.5923,149.65,149.64,3.042e-05]
[1740794132850,205.9323,149.65,149.64,3.042e-05]
[1740794133645,5.3514,149.55,149.54,7.747e-05]
[1740794133849,213.92,149.55,149.5,9.25113961]
[1740794134249,213.92,149.55,149.51,5.50718167]
[1740794134446,213.92,149.55,149.52,5.50718167]
[1740794134650,5.3517,149.54,149.53,5.50718167]
[1740794134858,213.92,149.55,149.51,9.17018167]
[1740794135053,213.96746288,149.55,149.52,5.55495]
[1740794135254,208.31586288,149.55,149.53,5.50718167]
[1740794135454,208.01606288,149.55,149.54,5.50718167]
[1740794135653,202.66466288,149.55,149.53,5.50718167]
[1740794135856,202.66466288,149.55,149.52,6.70776833]
[1740794135857,5.3517,149.54,149.52,6.70776833]
[1740794136157,202.66466288,149.55,149.52,12.20425351]
[1740794136663,5.3521,149.53,149.52,12.20425351]
[1740794137258,5.3521,149.53,149.52,12.20273966]
[1740794137960,5.3521,149.53,149.52,6.70776833]
[1740794139170,213.98,149.63,149.52,8.87370311]
[1740794139373,213.98,149.63,149.53,21.06593478]
[1740794139563,213.98,149.63,149.54,5.48593478]
[1740794139772,213.98,149.63,149.55,5.48593478]
[1740794140078,213.98,149.63,149.53,15.58]
[1740794140079,5.35,149.59,149.56,5.48593478]
[1740794140377,5.35,149.59,149.58,0.04364521]
[1740794140571,5.35,149.59,149.56,5.48593478]
[1740794140773,5.35,149.59,149.57,0.04532279]
[1740794141078,213.98,149.72,149.57,0.04532279]
[1740794141374,213.98,149.72,149.58,5.48593478]
[1740794141577,5.3477,149.66,149.59,15.58]
[1740794141776,213.98,149.72,149.6,8.97683478]
[1740794142276,0.04947926,149.67,149.65,0.04358232]
[1740794142476,213.98,149.72,149.65,0.04358232]
[1740794142677,0.04820445,149.67,149.65,0.04358232]
[1740794142866,5.3474,149.66,149.65,0.04358232]
[1740794143071,5.3474,149.66,149.65,8.232e-05]
[1740794147476,8.6874,149.66,149.65,8.232e-05]
[1740794148181,5.3474,149.66,149.65,8.232e-05]
[1740794148978,8.6874,149.66,149.65,8.232e-05]
[1740794150082,5.3474,149.66,149.65,8.232e-05]
[1740794151880,28.7274,149.66,149.65,8.232e-05]
[1740794152474,5.3474,149.66,149.65,8.232e-05]
[1740794152681,8.6874,149.66,149.65,8.232e-05]
[1740794153081,5.3474,149.66,149.65,8.232e-05]
[1740794153484,8.6874,149.66,149.65,8.232e-05]
[1740794153685,5.3474,149.66,149.65,8.232e-05]
[1740794153879,8.6874,149.66,149.65,8.232e-05]
[1740794154077,5.3474,149.66,149.65,8.232e-05]
[1740794154282,28.7274,149.66,149.65,8.232e-05]
[1740794154986,25.3874,149.66,149.65,8.232e-05]
[1740794155188,28.7274,149.66,149.65,8.232e-05]
[1740794156985,28.7274,149.66,149.53,15.28694981]
[1740794156986,5.3521,149.53,149.52,15.28694981]
[1740794157192,5.3521,149.53,149.52,20.79511146]
[1740794158586,0.05101207,149.54,149.52,24.13511146]
[1740794158786,0.05101207,149.54,149.53,5.50816165]
[1740794158983,219.3313,149.56,149.53,20.79511146]
[1740794159187,219.3313,149.56,149.54,5.50816165]
[1740794159389,219.3313,149.56,149.55,5.50816165]
[1740794159787,214.0,149.71,149.55,5.50816165]
[1740794159985,214.0,149.71,149.56,6.03626165]
[1740794160186,214.0,149.71,149.57,20.79511146]
[1740794160483,5.3477,149.66,149.6,5.3495]
[1740794160794,214.0,149.71,149.61,39.49221146]
[1740794160987,214.0,149.71,149.62,5.50816165]
[1740794161194,0.05107095,149.67,149.63,5.50816165]
[1740794161492,0.05107095,149.67,149.65,0.0433943]
[1740794161691,0.05107095,149.67,149.65,9.43e-05]
[1740794162495,5.3475,149.66,149.65,9.43e-05]
[1740794164698,8.6875,149.66,149.65,9.43e-05]
[1740794165387,5.3475,149.66,149.65,9.43e-05]
[1740794167693,28.7275,149.66,149.65,9.43e-05]
[1740794169089,25.3875,149.66,149.65,9.43e-05]
[1740794170295,5.351,149.56,149.55,5.52892276]
[1740794170495,5.351,149.56,149.55,20.94753702]
[1740794172891,0.04804218,149.57,149.55,20.94753702]
[1740794173090,0.04804218,149.57,149.54,5.39434264]
[1740794173091,0.04804218,149.57,149.56,20.94753702]
[1740794174399,5.39864218,149.57,149.56,20.94753702]
[1740794175399,5.3503,149.58,149.56,20.94753702]
[1740794175600,5.3503,149.58,149.57,5.52892276]
[1740794175801,213.96,149.59,149.57,15.41861426]
[1740794175996,5.3503,149.58,149.57,15.41861426]
[1740794176195,5.3503,149.58,149.57,20.94784887]
[1740794178703,219.35302928,149.59,149.57,20.94784887]
[1740794178905,219.35302928,149.59,149.54,0.04284264]
[1740794178906,219.35302928,149.59,149.58,20.94784887]
[1740794179202,100.60998273,151.77,149.59,192.0]
[1740794179203,221.45687904,149.78,149.59,192.0]
[1740794179401,107.77894737,149.87,149.65,20.04]
[1740794179594,7.2227,150.23,149.67,46.803]
[1740794179799,213.98,150.12,149.96,5.3366]
[1740794180102,213.98,150.12,149.97,19.9]
[1740794180298,213.98,150.12,149.97,25.33659439]
[1740794180503,0.04941131,149.99,149.97,25.33659439]
[1740794180705,213.98,150.12,149.97,40.44242053]
[1740794180905,13.36,150.05,149.98,15.05859173]
[1740794181102,13.36,150.05,149.99,5.43659439]
[1740794181302,213.98,150.12,150.0,10.92042319]
[1740794181497,13.36,150.05,150.01,5.43659439]
[1740794181704,13.36,150.05,150.02,5.43659439]
[1740794181902,13.40456258,150.05,150.03,5.43659439]
[1740794182097,13.40456258,150.05,150.01,14.44323915]
[1740794182294,0.04456258,150.05,150.04,14.39750554]
[1740794182902,53.48456258,150.05,150.04,14.39750554]
[1740794183104,120.26456258,150.05,150.04,14.39750554]
[1740794183305,120.26456258,150.05,150.04,4.98448328]
[1740794183909,120.26456258,150.05,150.04,189.09535723]
[1740794184205,97.92773561,150.05,150.04,227.06591327]
[1740794184812,213.98,150.12,150.04,227.06591327]
[1740794185012,61.178,150.1,150.04,227.06591327]
[1740794185206,0.04311477,150.09,150.05,5.91358067]
[1740794185412,61.178,150.11,150.04,222.08142999]
[1740794185714,61.178,150.12,150.05,5.90955476]
[1740794185907,23.2525,150.22,150.06,5.90955476]
[1740794186210,54.40023561,150.22,150.07,5.90955476]
[1740794186413,0.04211278,150.16,150.13,0.0461743]
[1740794186905,31.18984839,150.16,150.13,0.0461743]
[1740794187110,338.0,150.59,150.13,0.0461743]
[1740794187111,0.42864882,150.8,150.21,20.06]
[1740794187310,0.42864882,150.8,150.37,7.61895264]
[1740794187311,7.1772,150.72,150.37,7.61895264]
[1740794187506,7.1772,150.72,150.39,7.61895264]
[1740794187711,213.56,150.7,150.42,7.61895264]
[1740794187910,213.56,150.7,150.43,22.92343611]
[1740794188212,0.04871608,150.5,150.47,0.04986863]
[1740794188407,213.56,150.7,150.48,21.3902088]
[1740794188709,213.56,150.78,150.49,29.26448347]
[1740794188909,12.65503574,150.68,150.5,15.30448347]
[1740794189208,0.39980812,150.68,150.51,5.8902088]
[1740794189407,12.65503574,150.68,150.49,13.96]
[1740794189608,214.54740426,150.67,150.43,73.84491379]
[1740794189804,1.32749236,150.66,150.43,73.84491379]
[1740794190106,21.36749236,150.66,150.43,73.84491379]
[1740794190311,33.62271998,150.66,150.43,73.84491379]
[1740794190508,24.68749236,150.66,150.59,566.0525874]
[1740794190709,24.68749236,150.66,150.59,530.5058881]
[1740794191007,0.04837018,150.64,150.55,243.93812827]
[1740794191312,1.32775675,150.63,150.55,243.86522827]
[1740794192114,0.04507348,150.61,150.57,0.04662893]
[1740794192303,186.5446,150.6,150.57,0.04662893]
[1740794192709,5.3148,150.58,150.57,2.893e-05]
[1740794193212,8.6348,150.58,150.57,2.893e-05]
[1740794193412,186.5446,150.6,150.57,2.893e-05]
[1740794193611,186.5446,150.59,150.57,2.893e-05]
[1740794193917,186.5446,150.58,150.57,2.893e-05]
[1740794194114,5.3176,150.5,150.41,3.6072]
[1740794194313,213.06,150.49,150.42,166.9968407]
[1740794194610,213.06,150.48,150.42,166.9968407]
[1740794194811,213.06,150.48,150.42,173.6368407]
[1740794195213,0.05002422,150.47,150.43,0.05119587]
[1740794195515,0.05002422,150.47,150.43,105.67838484]
[1740794195714,213.06,150.48,150.43,105.67838484]
[1740794195715,120.30027989,150.48,150.43,105.67838484]
[1740794196517,120.30027989,150.48,150.44,49.9615754]
[1740794196917,27.54725318,150.48,150.44,49.9615754]
[1740794198012,212.9,150.51,150.44,12.85116636]
[1740794198212,212.9,150.51,150.45,12.85116636]
[1740794199210,0.04326237,150.5,150.46,0.04254557]
[1740794199409,0.30754,150.55,150.46,0.04254557]
[1740794199615,0.30754,150.55,150.51,0.6972667]
[1740794200006,5.3166,150.53,150.51,0.6972667]
[1740794200206,0.28754,150.55,150.47,105.63442744]
[1740794200621,5.3176,150.5,150.49,0.04839007]
[1740794201120,5.3176,150.5,150.49,9.007e-05]
[1740794202720,5.3176,150.5,150.49,6.707e-05]
[1740794202921,0.28754,150.55,150.49,6.707e-05]
[1740794203109,186.5446,150.54,150.49,6.707e-05]
[1740794204223,186.5446,150.54,150.49,4.932e-05]
[1740794204616,186.5446,150.53,150.49,4.932e-05]
[1740794204814,186.5446,150.52,150.5,4.932e-05]
[1740794205324,5.3176,150.5,150.49,5.292e-05]
[1740794206122,186.5446,150.52,150.49,24.76811404]
[1740794206310,186.5446,150.52,150.49,1.404e-05]
[1740794206721,186.5446,150.52,150.49,55.67979583]
[1740794206924,5.3176,150.5,150.49,55.67979583]
[1740794207221,26.0362,150.57,150.49,55.67979583]
[1740794207421,7.1641,151.04,150.5,267.28783766]
[1740794207722,20.04,151.05,150.52,20.04]
[1740794207916,20.04,151.03,150.53,4.70602065]
[1740794208112,1.14567829,151.02,150.53,3.4868]
[1740794208527,0.04566613,150.79,150.76,0.05025731]
[1740794208826,212.82,150.78,150.53,3.4868]
[1740794209014,212.82,150.77,150.76,0.04605537]
[1740794209219,1649.4,150.89,150.53,3.4868]
[1740794209516,212.82,150.88,150.78,273.05633759]
[1740794209716,212.82,150.87,150.78,273.05633759]
[1740794209920,0.0427499,150.85,150.81,5.48e-05]
[1740794210113,0.0427499,150.85,150.53,3.4868]
[1740794210331,5.3085,150.76,150.53,3.4868]
[1740794210522,212.68,150.84,150.53,3.4868]
[1740794211026,8.9156,150.83,150.82,2.555e-05]
[1740794211229,0.04618235,150.7,150.67,0.04385083]
[1740794211730,212.68,150.73,150.67,3.37095313]
[1740794211927,212.68,150.81,150.67,3.37095313]
[1740794212120,212.68,150.85,150.67,0.05095313]
[1740794212321,217.9855,150.85,150.68,3.5596]
[1740794212519,212.68,150.85,150.69,3.5368]
[1740794213228,0.04459873,150.79,150.75,0.0445045]
[1740794213632,0.04459873,150.79,150.69,3.5368]
[1740794213829,212.54,150.92,150.78,69.69095519]
[1740794215232,212.54,150.92,150.83,0.04512377]
[1740794215632,212.54,151.0,150.83,3.36512377]
[1740794215935,212.54,151.02,150.79,7.24924237]
[1740794216130,212.54,151.02,150.9,0.04897422]
[1740794216529,212.54,151.02,150.8,1.32625994]
[1740794216530,212.54,151.02,150.81,3.5211]
[1740794217234,212.54,151.02,150.9,0.04237597]
[1740794217528,212.54,151.02,150.81,3.5211]
[1740794217728,67.15159184,151.17,150.94,0.04645464]
[1740794217934,0.40744401,151.17,150.95,1.32494203]
[1740794218229,0.40744401,151.17,150.96,3.3692]
[1740794218432,0.40744401,151.17,151.04,0.04776023]
[1740794218829,5.2955,151.13,150.95,1.32494203]
[1740794219025,212.4,151.12,150.95,1.32494203]
[1740794219232,212.4,151.12,151.02,0.04181898]
[1740794219531,211.83521398,151.12,150.95,1.32494203]
[1740794219835,40.1,151.11,150.86,69.69095519]
[1740794220129,1.14473352,151.1,150.93,167.26910224]
[1740794220334,40.1,151.08,150.69,6.8478]
[1740794220538,0.04810778,151.03,151.0,4.864e-05]
[1740794220730,212.2,151.02,150.69,3.4786]
[1740794220924,5.3047,150.87,150.69,3.4786]
[1740794221128,212.2,150.92,150.69,3.4786]
[1740794221833,0.04868034,150.82,150.79,0.04742976]
[1740794222232,212.2,150.92,150.7,3.6249]
[1740794222433,0.04220903,150.82,150.79,0.04550851]
[1740794222834,212.2,150.92,150.7,3.6249]
[1740794223038,0.04997674,150.82,150.79,0.04919661]
[1740794223224,212.2,150.92,150.7,3.6249]
[1740794223430,0.04846313,150.82,150.79,0.04940379]
[1740794224030,212.18,151.01,150.79,3.36940379]
[1740794224236,212.18,151.01,150.72,212.18]
[1740794224439,212.18,151.01,150.73,5.65341918]
[1740794224739,4.55927559,151.0,150.71,5.17266528]
[1740794224925,4.55927559,151.0,150.68,8.36076282]
[1740794224926,21.20517559,150.99,150.73,13.5334281]
[1740794225130,41.24517559,150.98,150.73,13.5334281]
[1740794225337,5.3052,150.85,150.84,0.04381749]
[1740794225530,5.3052,150.85,150.73,13.5334281]
[1740794225531,212.16,150.85,150.73,13.5334281]
[1740794226037,212.16,150.85,150.68,5.17266528]
[1740794226837,0.04615809,150.78,150.75,0.05049656]
[1740794227042,212.16,150.85,150.59,19.3097318]
[1740794227238,0.04656164,150.78,150.75,0.04619869]
[1740794227428,0.04656164,150.78,150.61,34.58061312]
[1740794227635,212.16,150.85,150.62,27.36367263]
[1740794227941,5.3074,150.79,150.75,0.04445797]
[1740794228129,212.16,150.85,150.64,5.68357691]
[1740794228336,0.04973249,150.79,150.75,0.04285514]
[1740794228531,212.16,150.85,150.75,0.04285514]
[1740794228732,0.04954987,150.79,150.75,0.0487067]
[1740794229136,0.04954987,150.79,150.68,7.21690368]
[1740794229337,0.04954987,150.79,150.75,0.04321239]
[1740794229540,211.65169258,150.85,150.75,0.04321239]
[1740794229737,0.04312587,150.79,150.75,0.04321239]
[1740794229939,0.04312587,150.79,150.71,5.68357691]
[1740794230242,0.04312587,150.79,150.76,13.62615489]
[1740794230538,211.65169258,150.85,150.77,13.62615489]
[1740794230742,0.04324425,150.79,150.77,13.62615489]
[1740794230934,211.65169258,150.85,150.79,0.04312144]
[1740794231134,211.65169258,150.85,150.78,13.62615489]
[1740794231340,0.05029825,150.84,150.8,13.66912686]
[1740794231632,5.3062,150.84,150.81,5.17266528]
[1740794231836,0.04583194,150.84,150.81,5.17266528]
[1740794232037,0.04583194,150.84,150.82,5.17266528]
[1740794232341,3.649,150.94,150.82,5.17266528]
[1740794232342,190.0,151.06,150.83,14.96260605]
[1740794232539,3.6747,151.0,150.84,14.96260605]
[1740794232733,3.6747,151.0,150.85,14.96260605]
[1740794232934,3.6747,151.0,150.86,14.96260605]
[1740794233237,3.6747,151.0,150.87,5.77066961]
[1740794233538,0.04408929,150.95,150.91,0.04712363]
[1740794233933,5.3033,150.92,150.91,0.04712363]
[1740794235537,5.3033,150.92,150.91,8.52547317]
[1740794235749,0.04408929,150.95,150.91,8.52547317]
[1740794235939,0.04408929,150.95,150.92,5.76023126]
[1740794236141,0.04408929,150.95,150.91,8.52547317]
[1740794236849,0.04408929,150.95,150.91,0.04712363]
[1740794237549,5.3027,150.94,150.91,0.04712363]
[1740794237749,0.04408929,150.95,150.91,0.04712363]
[1740794238046,5.3033,150.92,150.91,0.04712363]
[1740794238843,0.04408929,150.95,150.79,11.52827067]
[1740794239045,212.16,150.97,150.8,5.76780576]
[1740794239243,212.16,150.97,150.81,5.76780576]
[1740794239548,212.16,150.97,150.75,22.56275095]
[1740794239549,213.02728982,150.97,150.78,5.76780576]
[1740794239846,213.02728982,150.97,150.77,5.76780576]
[1740794240048,5.306,150.85,150.78,5.76780576]
[1740794240239,5.306,150.85,150.79,5.76780576]
[1740794240439,0.04557002,150.83,150.8,5.81058439]
[1740794240643,5.305,150.88,150.81,5.76780576]
[1740794240845,213.02728982,150.97,150.82,5.76780576]